Cogmind - Beta 12 @@@ ROGUE MODE // 2023.11.25 @ 12:20:08 Player: Tim Result: Destroyed by G-47 Trooper with Particle Gun Performance ------------- Evolutions (2) 1000 Regions Visited (3) 600 Robots Destroyed (52) 260 Value Destroyed (1008) 1008 Prototype IDs (0) 0 Alien Tech Used (0) 0 Bonus (0) 0 TOTAL SCORE: 2868 Bonus ------- None Cogmind --------- Core Integrity 0/550 Matter 206/300 Energy 100/100 System Corruption 0% Temperature Cool (18) Movement Core (1350) Ox26 Location -8/Materials Parts ------- > --- POWER (1) -------- (None) > --- PROPULSION (3) --- (None) > --- UTILITY (5) ------ Huge Storage Unit Visual Processing Unit Transport Network Coupler > --- WEAPON (2) ------- (None) > --- INVENTORY (25) --- Ion Engine Ion Engine Light Ion Engine Improved Ion Engine Light Nuclear Core Huge Storage Unit Large Battery (200) High-capacity Matter Pod (200) Visual Processing Unit Improved Sensor Array Improved Terrain Scanner Autogun Peak State ------------ > --- POWER ------------ Light Nuclear Core > --- PROPULSION ------- Aluminum Leg Aluminum Leg Aluminum Leg > --- UTILITY ---------- Huge Storage Unit Visual Processing Unit Transport Network Coupler Hacking Suite System Shield > --- WEAPON ----------- Ion Cannon Minigun > --- INVENTORY -------- Ion Engine Ion Engine Light Ion Engine Improved Ion Engine Huge Storage Unit Large Battery High-capacity Matter Pod Improved Sensor Array Improved Terrain Scanner Autogun Autogun Autogun [Rating: 24] Favorites ----------- Power Ion Engine Engine Ion Engine Power Core Light Nuclear Core Propulsion Aluminum Leg Treads Light Treads Leg Aluminum Leg Wheel Wheel Utility Visual Processing Unit Device Seismic Detector Storage Huge Storage Unit Processor Visual Processing Unit Hackware Hacking Suite Protection Light Armor Plating Weapon Autogun Energy Gun EM Pulse Gun Energy Cannon Ion Cannon Ballistic Gun Autogun Launcher Grenade Launcher Special Weapon Mining Laser Build | -11 -10 -9 -8 ------- Run | Jun Mat Mat Mat Slots Evolved 4 | . . 2 2 Power . | . . . . Propulsion 1 | . . . 1 Utility 3 | . . 2 1 Weapon . | . . . . Parts Attached 49 | 7 5 19 18 Power 7 | 1 1 2 3 Engine 6 | 1 1 2 2 Core 1 | . . . 1 Reactor . | . . . . Propulsion 18 | 3 1 5 9 Treads 3 | . . . 3 Leg 14 | 2 1 5 6 Wheel 1 | 1 . . . Hover . | . . . . Flight . | . . . . Utility 10 | 1 2 5 2 Device 2 | . . 2 . Storage 3 | 1 1 1 . Processor 2 | . . 2 . Hackware 2 | . . . 2 Protection 1 | . 1 . . Artifact . | . . . . Weapon 14 | 2 1 7 4 Energy Gun 3 | 2 . 1 . Energy Cannon 2 | . . 1 1 Ballistic Gun 7 | . . 4 3 Ballistic Cannon . | . . . . Launcher 1 | . 1 . . Special Weapon 1 | . . 1 . Impact Weapon . | . . . . Slashing Weapon . | . . . . Piercing Weapon . | . . . . Special Melee Weapon . | . . . . Unidentified Prototypes . | . . . . Parts Lost 21 | . 2 7 12 Power 2 | . 1 . 1 Propulsion 7 | . . 2 5 Utility 5 | . . 3 2 Weapon 7 | . 1 2 4 Highest Loss Streak 12 | . 2 4 12 To Critical Strikes . | . . . . Average Slot Usage (%) 88 | . 91 83 93 Engine 9 | . 13 11 7 Leg 22 | . 28 21 21 Device 1 | . . 3 . Storage 10 | . 14 11 9 Processor 13 | . . 15 18 Hackware 6 | . . . 16 Protection 2 | . 8 1 . Energy Gun 4 | . 15 3 . Energy Cannon 3 | . . . 8 Ballistic Gun 10 | . . 15 8 Launcher 2 | . 11 . . Naked Turns . | . . . . Heaviest Build 96 | 14 33 92 96 Greatest Support 40 | 20 20 20 40 Greatest Overweight (x) 26 | 2 1 9 26 Average Overweight (x) 1 | . . 1 3 Largest Inventory Capacity 25 | 8 15 25 25 Average Capacity 18 | 7 10 18 25 Most Carried 17 | 5 9 17 17 Average Carried 9 | 3 6 9 12 Final Capacity 25 | 8 15 25 25 Final Carried 12 | 4 9 10 12 Class Distribution -------------------- 51% | Scavenger-Mutant 46% | Mutant Dominant Class ---------------- Mutant | -10/Materials Scavenger-Mutant | -9/Materials Scavenger-Mutant | -8/Materials Resources | -11 -10 -9 -8 ----------- Run | Jun Mat Mat Mat Matter Collected 1204 | 270 40 676 218 Remotely . | . . . . Salvage Created 1895 | 277 117 802 699 Parts 112 | 12 17 48 35 Haulers Intercepted 3 | . . 2 1 Recyclers Shooed 2 | . . . 2 Parts Field Recycled . | . . . . Retrieved Matter . | . . . . Parts Self-Destructed . | . . . . Prevented . | . . . . Kills | -11 -10 -9 -8 ------- Run | Jun Mat Mat Mat Combat Hostiles Destroyed 24 | . 2 15 7 Guns 17 | . 2 12 3 Cannons 5 | . . 1 4 AOE 1 | . . 1 . Classes Destroyed 10 | 3 3 4 . Worker 6 | 2 2 1 1 Builder 6 | . 2 1 3 Tunneler 5 | 5 . . . Hauler 3 | . . 2 1 Recycler 4 | 1 . 1 2 Mechanic 1 | . . 1 . Watcher 3 | . 2 . 1 Swarmer 5 | . 2 3 . Grunt 13 | . . 9 4 Sentry 6 | . . 3 3 Best Kill Streak 6 | 6 4 4 4 Combat Bots Only 3 | . 1 3 3 Max Kills in Single Turn 2 | 2 1 2 2 Gunslinging . | . . . . Exploded 1 | . . 1 . Melee . | . . . . Uniques/NPCs Destroyed . | . . . . Combat | -11 -10 -9 -8 -------- Run | Jun Mat Mat Mat Damage Taken 3046 | 29 358 926 1733 Core 882 | . 160 165 557 Absorbed by Shields . | . . . . Core Remaining (%) 64 | 100 36 58 . Volleys Fired 140 | 12 25 59 44 Largest 2 | 2 2 2 2 Hottest 96 | 80 80 96 85 Shots Fired 246 | 24 41 98 83 Gun 199 | 24 36 91 48 Cannon 40 | . . 5 35 Launcher 7 | . 5 2 . Special . | . . . . Kinetic 111 | . . 63 48 Thermal 60 | . . 25 35 Explosive 7 | . 5 2 . Electromagnetic 68 | 24 36 8 . Robot Hit Streak 13 | 4 5 12 13 Robot Miss Streak 5 | 2 5 4 2 Penetration Max . | . . . . Secondary Targets 1 | . . 1 . Max Gunslinging Chain 1 | . . 1 . Shots Hit Robots 142 | 14 14 63 51 Core Hits 67 | 9 8 27 23 Critical Kills . | . . . . Critical Parts Destroyed . | . . . . Critical Strikes 4 | . 1 3 . Burn 2 | . . 2 . Corrupt 2 | . 1 1 . Melee Attacks . | . . . . Impact . | . . . . Slashing . | . . . . Piercing . | . . . . Sneak Attacks . | . . . . Combat Hostiles . | . . . . Follow-up Attacks . | . . . . Damage Inflicted 2813 | 308 309 1101 1095 Guns 1869 | 203 169 976 521 Cannons 665 | . . 93 572 Explosions 270 | 105 135 30 . Melee . | . . . . Ramming 9 | . 5 2 2 Kinetic 1178 | . . 657 521 Thermal 1058 | 105 56 325 572 Explosive 109 | . 79 30 . Electromagnetic 459 | 203 169 87 . Impact . | . . . . Slashing . | . . . . Piercing . | . . . . Highest Corruption . | . . . . Average Corruption . | . . . . Corruption Purged . | . . . . Corruption Blocked . | . . . . Overload Shots . | . . . . Overflow Damage 2 | . . 2 . Projectiles 2 | . . 2 . Explosions . | . . . . Melee . | . . . . Knockbacks . | . . . . Impact . | . . . . Kinetic . | . . . . Secondary . | . . . . Self-Inflicted Damage 162 | 29 96 37 . Shots 3 | 1 1 1 . Rammed . | . . . . Targets Rammed 4 | . 1 2 1 Kicked 4 | . 1 2 1 Crushed . | . . . . Highest Temperature 277 | 102 144 277 177 Average Temperature 61 | 40 60 76 54 Received Heat Transfer 1146 | . . 354 792 Siege Activations . | . . . . Robots Corrupted . | . . . . Combat Hostiles . | . . . . Parts Fried . | . . . . Impact Corruptions . | . . . . Robots Melted 1 | . . 1 . Combat Hostiles 1 | . . 1 . Parts Melted 7 | 1 . 4 2 Heat Transferred 1913 | 50 50 888 925 Parts Sabotaged . | . . . . Parts Stolen . | . . . . Parts Stripped . | . . . . Power Chain Reactions 3 | 2 1 . . Missiles Intercepted . | . . . . Alert | -11 -10 -9 -8 ------- Run | Jun Mat Mat Mat Peak Influence 188 | 40 171 188 184 Initial 33 | . 26 . 33 Average 89 | 19 123 94 78 Maximum Alert Level . | . . . . Low Security (%) 100 | 100 100 100 100 Level 1 . | . . . . Level 2 . | . . . . Level 3 . | . . . . Level 4 . | . . . . Level 5 . | . . . . High Security . | . . . . Max Security . | . . . . Squads Dispatched 4 | . . 3 1 Investigation 2 | . . 2 . Extermination . | . . . . Reinforcement 1 | . . 1 . Assault . | . . . . Garrison 1 | . . . 1 Intercept . | . . . . Searches Triggered . | . . . . Construction Impeded . | . . . . Haulers Reinforced . | . . . . Active Scanning Responses . | . . . . Cargo Convoy Interrupts . | . . . . Stealth | -11 -10 -9 -8 --------- Run | Jun Mat Mat Mat Distress Signals 2 | . 1 . 1 Communications Jammed . | . . . . Distress Signals . | . . . . Times Spotted 40 | . 6 18 16 Peak Tracking Total 6 | . 5 4 6 Tactical Retreats 3 | . . 2 1 Traps | -11 -10 -9 -8 ------- Run | Jun Mat Mat Mat Traps Triggered 1 | . . 1 . Indirectly . | . . . . Trap Hack Attempts . | . . . . Triggered . | . . . . Disarmed . | . . . . Reprogrammed . | . . . . Reused . | . . . . Traps Extracted . | . . . . Installed . | . . . . Triggered . | . . . . Machines | -11 -10 -9 -8 ---------- Run | Jun Mat Mat Mat Machines Disabled 2 | . 2 . . Max in Single Turn 1 | . 1 . . Machines Repaired . | . . . . Machines Sabotaged . | . . . . Overloaded Fab Kills . | . . . . Hacking | -11 -10 -9 -8 --------- Run | Jun Mat Mat Mat Machines Accessed 5 | . . 2 3 Terminals 2 | . . . 2 Fabricators . | . . . . Repair Stations 1 | . . 1 . Recycling Units 1 | . . 1 . Scanalyzers 1 | . . . 1 Garrison Access . | . . . . Total Hacks 44 | . . 8 36 Successful 40 | . . 4 36 Failed 4 | . . 4 . Catastrophic . | . . . . Database Lockouts . | . . . . Manual 1 | . . 1 . Terminals 3 | . . . 3 Fabricators . | . . . . Repair Stations 3 | . . 3 . Recycling Units 5 | . . 5 . Scanalyzers 33 | . . . 33 Garrison Access . | . . . . Terminal Hacks 3 | . . . 3 Record 2 | . . . 2 Alert Level 1 | . . . 1 Fabricator Hacks . | . . . . Repair Station Hacks 3 | . . 3 . Scan Component 2 | . . 2 . Refit 1 | . . 1 . Recycling Unit Hacks 1 | . . 1 . Report Inventory 1 | . . 1 . Scanalyzer 33 | . . . 33 Insert Component 15 | . . . 15 Analyze 18 | . . . 18 Garrison Access Hacks . | . . . . Unauthorized Hacks . | . . . . Terminals . | . . . . Fabricators . | . . . . Repair Stations . | . . . . Recycling Units . | . . . . Scanalyzers . | . . . . Garrison Access . | . . . . Data Cores Recovered . | . . . . Used . | . . . . Hacking Detections 4 | . . 2 2 Full Trace Events 1 | . . 1 . Feedback Events . | . . . . Feedback Blocked . | . . . . Robot Schematics Acquired . | . . . . Robots Built . | . . . . Authchips . | . . . . Time . | . . . . Total Robot Build Rating . | . . . . Part Schematics Acquired 15 | . . . 15 Parts Built . | . . . . Authchips . | . . . . Time . | . . . . Total Part Build Rating . | . . . . Parts Repaired . | . . . . Time . | . . . . Parts Recycled . | . . . . Recycled Matter . | . . . . Retrieved Matter . | . . . . Retrieved Components . | . . . . Parts Scanalyzed 15 | . . . 15 Part Schematics Acquired 15 | . . . 15 Parts Damaged 1 | . . . 1 Bothacking | -11 -10 -9 -8 ------------ Run | Jun Mat Mat Mat Used RIF Installer . | . . . . Robots Hacked . | . . . . Non-combat . | . . . . Combat . | . . . . Robot Hacks Applied . | . . . . Relay Couplers Released . | . . . . Fabnet Peak Effective % . | . . . . Robots Rewired . | . . . . Allies Hacked . | . . . . Hacks Repelled . | . . . . Allies | -11 -10 -9 -8 -------- Run | Jun Mat Mat Mat Total Allies . | . . . . Largest Group . | . . . . Highest-Rated Group . | . . . . Highest-Rated Ally . | . . . . Total Orders . | . . . . Ally Attacks . | . . . . Total Damage . | . . . . Kills . | . . . . Allies Corrupted . | . . . . Allies Melted . | . . . . Intel | -11 -10 -9 -8 ------- Run | Jun Mat Mat Mat Robot Analysis Total . | . . . . Derelict Logs Recovered . | . . . . Drone Launches . | . . . . Drone Recoveries . | . . . . Exploration | -11 -10 -9 -8 ------------- Run | Jun Mat Mat Mat Turns Passed 2398 | 142 424 1020 812 Spaces Moved 798 | 68 230 317 183 Core 26 | 25 . . 1 Treads 16 | . . . 16 Legs 756 | 43 230 317 166 Wheels . | . . . . Hover . | . . . . Flight . | . . . . Fastest Speed 50 | 50 120 190 260 Average Speed 230 | 97 146 257 336 Slowest Speed 1350 | 150 190 750 1350 Overloaded Moves . | . . . . Propulsion Burnouts . | . . . . Robots Hopped . | . . . . Cave-ins Triggered . | . . . . Exploration Rate (%) 20 | 3 32 24 21 Regions Visited 3 Branch Regions . Pre-discovered Areas . | . . . . Known Exits Taken . | . . . . Unknown Exits Taken 3 | 1 1 1 . Scrap Searched . | . . . . Spaces Dug . | . . . . Terrain Destroyed 61 | 3 42 12 4 Melee . | . . . . Projectile 4 | . . . 4 AOE 57 | 3 42 12 . Terrain Rammed . | . . . . Walls Destroyed . | . . . . Machines Disabled . | . . . . Actions | -11 -10 -9 -8 --------- Run | Jun Mat Mat Mat Total 1134 | 118 275 438 303 Wait 84 | 25 5 12 42 Move 795 | 67 229 316 183 Hop . | . . . . Pick Up 40 | 7 9 14 10 Fast Attach 5 | 3 . 2 . Attach 28 | 3 3 10 12 Detach 10 | . . 6 4 Swap 16 | 1 2 7 6 Drop 12 | . 1 10 1 Fire 140 | 12 25 59 44 Melee . | . . . . Ram . | . . . . Kick 4 | . 1 2 1 Crush . | . . . . Escape Stasis . | . . . . Rewire . | . . . . Trap . | . . . . Miscellaneous . | . . . . Route ------- -11/Junkyard -10/Materials -9/Materials -8/Materials (discovered 1 exit: [*Sto]) History --------- Turn | Location | Event 4 | -11/Junkyard | Discovered new exit (range 15) 143 | -11/Junkyard | Entered Materials 272 | -10/Materials | Core integrity fell below 50% 335 | -10/Materials | Build established: Mutant 517 | -10/Materials | Discovered new exit (range 8) 567 | -10/Materials | Entered another Materials area 567 | -9/Materials | Evolved 2 slots: Utility x2 695 | -9/Materials | Lost 4 parts (1n1u2w) 1418 | -9/Materials | Build established: Scavenger-Mutant 1456 | -9/Materials | Discovered new exit (range 3) 1587 | -9/Materials | Entered another Materials area 1587 | -8/Materials | Evolved 2 slots: Propulsion x1, Utility x1 1895 | -8/Materials | Discovered new exit (range 8) 2312 | -8/Materials | Garrison activated, responded to threat 2375 | -8/Materials | Core integrity fell below 50% 2395 | -8/Materials | Core integrity fell below 20% 2399 | -8/Materials | Destroyed by G-47 Trooper with Particle Gun Last Messages --------------- Penetrated by Slug. M-13 Machinist repairs H-55 Commando. K-01 Serf collects debris. Penetrated by Slug. Autogun destroyed. K-01 Serf collects debris. M-13 Machinist repairs Imp. Heat Sink. M-13 Machinist repairs Lgt. Nuclear Core. K-01 Serf collects debris. Aluminum Leg destroyed. M-13 Machinist repairs Aluminum Leg. K-01 Serf collects debris. M-13 Machinist repairs Aluminum Leg. Aluminum Leg destroyed. K-01 Serf collects debris. Aluminum Leg destroyed. K-01 Serf collects debris. Slug penetrates Wall. M-13 Machinist repairs G-47 Trooper. Hacking Suite destroyed. Map ----- +----------------------------------------------------+ | !# #?????????#########???????????????????? | | # """ """ #?????????# ????????????????????? | | # """ """ #???####### """ """???????????????????? | | # """ """ #???# # """ """ ??????????????????? | | [# ##### # """ """ #?????????????????? | | ## + a < + #?????????????????? | | ?# ##### # #?????????????????? | | ?###########???# %= # #?????????????????? | | ???????????????### ### #?????????????????? | | ?????????????????#=#?###########?????????????????? | | ?????????????????# #?????????????????????????????? | | ?????????????????#%#?????????????????????????????? | | ?????????????????#%######????????????????????????? | | ?????????????????#!! #????????????????????????? | | ?????????????????###### #????????????????????????? | | ???????????############ #????????????????????????? | | ???????????# ##%#????????????????????????? | | ???????????# ! ## ##############???????????? | | ???????????# # ????????? | | ???????????# """ + ????????? | | ???????????# """ "" # ????????? | | ???????????# """ """ # ##############??????????? | | ???????????# S" # %##??????????????????????? | | ???????????# ] # %##??????????????????????? | | ???????????########### gg##??????????????????????? | | ????????????????????# @###########"Y"#####????? | | ????????????????????# gm ^ *%!*%= #??? | | ????????????????????# g ^^! %%% ?? | | ????????????????????# ^^*% #?????? | | ????????????????????# ############## #?????? | | ????????????????????#######??????????????????????? | | ?????????????????????????????????????????????????? | | ?????????????????????????????????????????????????? | | ?????????????????????????????????????????????????? | | ?????????????????????????????????????????????????? | | ?????????????????????????????????????????????????? | | ?????????????????????????????????????????????????? | | ?????????????????????????????????????????????????? | | ?????????????????????????????????????????????????? | | ?????????????????????????????????????????????????? | | ?????????????????????????????????????????????????? | | ?????????????????????????????????????????????????? | | ?????????????????????????????????????????????????? | | ?????????????????????????????????????????????????? | | ?????????????????????????????????????????????????? | | ?????????????????????????????????????????????????? | | ?????????????????????????????????????????????????? | | ?????????????????????????????????????????????????? | | ?????????????????????????????????????????????????? | | ?????????????????????????????????????????????????? | +----------------------------------------------------+ Best States ------------- Heat Dissipation 31 Energy Generation 14 Energy Capacity 265 Matter Stores 300 Matter Capacity 300 Sight Range 18 Terrain Scan Density 10 Armor Coverage 150 Evasion (%) 55 Recoil Reduction 2 Offensive Hacking 10 Defensive Hacking 10 Item Schematics ----------------- Lgt. Ion Engine | -8/Materials | Scanalyzed Huge Storage Unit | -8/Materials | Scanalyzed Imp. Ion Engine | -8/Materials | Scanalyzed Autogun | -8/Materials | Scanalyzed Lrg. Battery | -8/Materials | Scanalyzed Ion Engine | -8/Materials | Scanalyzed Hcp. Matter Pod | -8/Materials | Scanalyzed Lgt. Nuclear Core | -8/Materials | Scanalyzed Imp. Sensor Array | -8/Materials | Scanalyzed Imp. Terrain Scanner | -8/Materials | Scanalyzed Visual Processing Unit | -8/Materials | Scanalyzed Lgt. Treads | -8/Materials | Scanalyzed Minigun | -8/Materials | Scanalyzed Ion Cannon | -8/Materials | Scanalyzed Aluminum Leg | -8/Materials | Scanalyzed Robot Schematics ------------------ None Fabricated ------------ Nothing Alien Tech Used ----------------- None Achievements -------------- It's Just You Let's See Who's Tougher Troublemaker Challenges ------------ None Game ------ Seed SmartbombSwarmCoupler Manual? 0 Play Time 00:38:22 Cumulative 9.8 hours Start 2023.11.25 @ 11:40:36 End 2023.11.25 @ 12:20:08 Sessions 1 Manual Loads 0 Difficulty Rogue Special Mode None Game No. 26 Rogue 26 Adventurer 0 Explorer 0 Win Type - Total 0 Types 0/0/0/0/0/0/0/0/0 Lore% 8 Gallery% 12 Achievement% 3 Wizard Run 0 Options --------- ASCII 0 Keyboard 0 Movement Mouse Keybinds 0 Fullscreen 1 Font 24/Smallcaps Map View 113x50 Tactical HUD 0 Map Filters NONE Filters NONE Steam 1 RUN: 37859868-37ac-4838-8f49-35ba48a55d40